[Event "Early-Titled-Tuesday-Blitz-February-27-2024"]
[Site "Chess.com"]
[Date "2024.02.27"]
[Round "1"]
[White "Bekkedahl"]
[Black "Natalya_Buksa"]
[Result "0-1"]
[WhiteElo "2223"]
[BlackElo "2598"]
[TimeControl "180+1"]
[EndTime "8:06:47 PST"]
[Termination "Natalya_Buksa won on time"]

1. e4 {[%clk 0:03:00.9]} 1... c5 {[%clk 0:02:59]} 2. Nf3 {[%clk 0:03:00.4]} 2...
Nc6 {[%clk 0:02:59.6]} 3. Bb5 {[%clk 0:03:00.6]} 3... e5 {[%clk 0:02:58.7]} 4.
O-O {[%clk 0:02:59.7]} 4... Bd6 {[%clk 0:02:58.7]} 5. d3 {[%clk 0:02:56.1]} 5...
Nge7 {[%clk 0:02:59.2]} 6. Nc3 {[%clk 0:02:54.5]} 6... O-O {[%clk 0:02:58.8]} 7.
h3 {[%clk 0:02:48.1]} 7... h6 {[%clk 0:02:58.7]} 8. Nh2 {[%clk 0:02:48.6]} 8...
Nd4 {[%clk 0:02:57.6]} 9. Bc4 {[%clk 0:02:45.5]} 9... Bc7 {[%clk 0:02:57.4]} 10.
Bd5 {[%clk 0:02:37.5]} 10... Rb8 {[%clk 0:02:54]} 11. a4 {[%clk 0:02:36.2]}
11... a6 {[%clk 0:02:52.7]} 12. f4 {[%clk 0:02:30.7]} 12... exf4 {[%clk
0:02:43.3]} 13. Bxf4 {[%clk 0:02:31.6]} 13... b5 {[%clk 0:02:37.5]} 14. axb5
{[%clk 0:02:13.8]} 14... axb5 {[%clk 0:02:38.4]} 15. Qh5 {[%clk 0:02:05.7]}
15... Bxf4 {[%clk 0:02:27.2]} 16. Rxf4 {[%clk 0:01:58.6]} 16... Nxd5 {[%clk
0:02:18.9]} 17. Nxd5 {[%clk 0:01:59.5]} 17... d6 {[%clk 0:02:19.3]} 18. Ra7
{[%clk 0:01:46.4]} 18... Be6 {[%clk 0:02:16]} 19. c3 {[%clk 0:01:20.6]} 19...
Nc6 {[%clk 0:02:15.4]} 20. Ra6 {[%clk 0:00:48.2]} 20... Ne5 {[%clk 0:02:13.3]}
21. Ng4 {[%clk 0:00:45.7]} 21... Bxg4 {[%clk 0:02:05]} 22. hxg4 {[%clk
0:00:46.6]} 22... Nxd3 {[%clk 0:02:05]} 23. Rf3 {[%clk 0:00:41.7]} 23... Ne5
{[%clk 0:02:05]} 24. Rg3 {[%clk 0:00:35]} 24... f6 {[%clk 0:01:51.3]} 25. Nf4
{[%clk 0:00:27.2]} 25... Qd7 {[%clk 0:01:50.3]} 26. Ng6 {[%clk 0:00:19]} 26...
Rfe8 {[%clk 0:01:49.4]} 27. Nh4 {[%clk 0:00:17.3]} 27... Ra8 {[%clk 0:01:43.5]}
28. Rxa8 {[%clk 0:00:15.2]} 28... Rxa8 {[%clk 0:01:44.4]} 29. Nf5 {[%clk
0:00:15.5]} 29... b4 {[%clk 0:01:21]} 30. Rh3 {[%clk 0:00:14.7]} 30... Qf7
{[%clk 0:01:14.1]} 31. Nxh6+ {[%clk 0:00:08.9]} 31... gxh6 {[%clk 0:01:12.5]}
32. Qxh6 {[%clk 0:00:09.8]} 32... Qg7 {[%clk 0:01:10.1]} 33. Qf4 {[%clk
0:00:06.4]} 33... Ra1+ {[%clk 0:01:08.2]} 34. Kh2 {[%clk 0:00:06.3]} 34... Nxg4+
{[%clk 0:01:08.1]} 35. Kg3 {[%clk 0:00:02.7]} 35... Ne3+ {[%clk 0:01:06.2]} 36.
Kf3 {[%clk 0:00:03.1]} 36... Rf1+ {[%clk 0:01:04.8]} 37. Kxe3 {[%clk 0:00:02.7]}
37... Rxf4 {[%clk 0:01:05.4]} 38. Kxf4 {[%clk 0:00:03.4]} 38... bxc3 {[%clk
0:01:02.6]} 39. Rxc3 {[%clk 0:00:02.7]} 39... Qh6+ {[%clk 0:00:58.3]} 40. Kf5
{[%clk 0:00:01.2]} 40... Kf7 {[%clk 0:00:59]} 41. Rg3 {[%clk 0:00:01.1]} 41...
Qh5+ {[%clk 0:00:59.3]} 0-1

[Event "Early-Titled-Tuesday-Blitz-February-27-2024"]
[Site "Chess.com"]
[Date "2024.02.27"]
[Round "1"]
[White "chipmunknau"]
[Black "eightbyeightchess"]
[Result "1-0"]
[WhiteElo "2716"]
[BlackElo "2404"]
[TimeControl "180+1"]
[EndTime "8:06:49 PST"]
[Termination "chipmunknau won by resignation"]

1. d4 {[%clk 0:02:39]} 1... Nf6 {[%clk 0:02:59.1]} 2. Nf3 {[%clk 0:02:25.3]}
2... g6 {[%clk 0:02:58.6]} 3. g3 {[%clk 0:02:21.8]} 3... Bg7 {[%clk 0:02:58.5]}
4. Bg2 {[%clk 0:02:19.7]} 4... O-O {[%clk 0:02:57.9]} 5. O-O {[%clk 0:02:20.6]}
5... d6 {[%clk 0:02:42.1]} 6. c4 {[%clk 0:02:20.3]} 6... Nbd7 {[%clk 0:02:36.8]}
7. Nc3 {[%clk 0:02:20.3]} 7... c5 {[%clk 0:02:36.5]} 8. b3 {[%clk 0:02:17.6]}
8... cxd4 {[%clk 0:02:32.8]} 9. Nxd4 {[%clk 0:02:18.5]} 9... Nc5 {[%clk
0:02:32.3]} 10. Bb2 {[%clk 0:02:18.2]} 10... Rb8 {[%clk 0:02:31.6]} 11. Qd2
{[%clk 0:02:14]} 11... Ne6 {[%clk 0:02:27.1]} 12. Nc2 {[%clk 0:02:06.5]} 12...
Qa5 {[%clk 0:02:11.1]} 13. Rfd1 {[%clk 0:02:05.3]} 13... Qh5 {[%clk 0:02:10]}
14. Ne3 {[%clk 0:02:02.9]} 14... Ng5 {[%clk 0:02:00.4]} 15. Ncd5 {[%clk
0:01:34.2]} 15... Nxd5 {[%clk 0:01:31.1]} 16. Nxd5 {[%clk 0:01:35.1]} 16... Nh3+
{[%clk 0:01:19.8]} 17. Bxh3 {[%clk 0:01:29.9]} 17... Bxh3 {[%clk 0:01:17.5]} 18.
Nxe7+ {[%clk 0:01:29.2]} 18... Kh8 {[%clk 0:01:17.9]} 19. Bxg7+ {[%clk
0:01:26.4]} 19... Kxg7 {[%clk 0:01:18.1]} 20. Nd5 {[%clk 0:01:21.3]} 20... Bf5
{[%clk 0:01:08.2]} 21. Qd4+ {[%clk 0:00:58.4]} 21... f6 {[%clk 0:01:05.3]} 22.
Nf4 {[%clk 0:00:59]} 22... Qh6 {[%clk 0:00:55.8]} 23. Qxd6 {[%clk 0:00:55.7]}
23... Rbe8 {[%clk 0:00:53.1]} 24. Rd2 {[%clk 0:00:44.1]} 24... Rf7 {[%clk
0:00:48.8]} 25. Rad1 {[%clk 0:00:40.5]} 25... Rd7 {[%clk 0:00:40.9]} 26. Qc5
{[%clk 0:00:38.1]} 26... Rxd2 {[%clk 0:00:18.5]} 27. Rxd2 {[%clk 0:00:39]} 27...
Kf7 {[%clk 0:00:11.8]} 28. Qxa7 {[%clk 0:00:31.6]} 28... g5 {[%clk 0:00:11.3]}
29. Qxb7+ {[%clk 0:00:28.5]} 29... Kg8 {[%clk 0:00:11.2]} 30. Qd5+ {[%clk
0:00:27.8]} 30... Kh8 {[%clk 0:00:09.1]} 31. Qxf5 {[%clk 0:00:24.8]} 31... gxf4
{[%clk 0:00:09.3]} 32. Qxf4 {[%clk 0:00:25.7]} 1-0

[Event "Early-Titled-Tuesday-Blitz-February-27-2024"]
[Site "Chess.com"]
[Date "2024.02.27"]
[Round "1"]
[White "Alexei_Gubajdullin"]
[Black "Chernov_Alexander_A"]
[Result "1-0"]
[WhiteElo "2631"]
[BlackElo "2298"]
[TimeControl "180+1"]
[EndTime "8:06:49 PST"]
[Termination "Alexei_Gubajdullin won on time"]

1. Nf3 {[%clk 0:03:00]} 1... d5 {[%clk 0:02:55.1]} 2. g3 {[%clk 0:02:59.6]} 2...
c6 {[%clk 0:02:53.8]} 3. Bg2 {[%clk 0:02:59.7]} 3... Bg4 {[%clk 0:02:53.5]} 4.
O-O {[%clk 0:02:58.6]} 4... Nd7 {[%clk 0:02:53.4]} 5. c4 {[%clk 0:02:58.6]} 5...
e6 {[%clk 0:02:52.8]} 6. Qb3 {[%clk 0:02:58.3]} 6... Qb6 {[%clk 0:02:51.1]} 7.
d3 {[%clk 0:02:58.3]} 7... Ngf6 {[%clk 0:02:47.1]} 8. Be3 {[%clk 0:02:57.8]}
8... Bc5 {[%clk 0:02:42.1]} 9. d4 {[%clk 0:02:51.7]} 9... Be7 {[%clk 0:02:40.7]}
10. c5 {[%clk 0:02:51.8]} 10... Qxb3 {[%clk 0:02:38.7]} 11. axb3 {[%clk
0:02:51.5]} 11... a6 {[%clk 0:02:38.4]} 12. b4 {[%clk 0:02:51.5]} 12... Rc8
{[%clk 0:02:37.9]} 13. Nbd2 {[%clk 0:02:51.5]} 13... Bd8 {[%clk 0:02:37.7]} 14.
Nb3 {[%clk 0:02:51.4]} 14... Ne4 {[%clk 0:02:22.5]} 15. Na5 {[%clk 0:02:50.3]}
15... Bxa5 {[%clk 0:02:20.7]} 16. bxa5 {[%clk 0:02:50.2]} 16... f6 {[%clk
0:02:03.4]} 17. Ra4 {[%clk 0:02:47.8]} 17... Kf7 {[%clk 0:02:00.9]} 18. Rb4
{[%clk 0:02:47.5]} 18... Rb8 {[%clk 0:01:57.4]} 19. Bf4 {[%clk 0:02:47.3]} 19...
e5 {[%clk 0:01:56.8]} 20. dxe5 {[%clk 0:02:47.3]} 20... Bxf3 {[%clk 0:01:41.9]}
21. e6+ {[%clk 0:02:44]} 21... Kxe6 {[%clk 0:01:40.2]} 22. exf3 {[%clk
0:02:43.9]} 22... Nexc5 {[%clk 0:01:36.7]} 23. Re1+ {[%clk 0:02:42]} 23... Kf7
{[%clk 0:01:33.5]} 24. Bxb8 {[%clk 0:02:41.3]} 24... Rxb8 {[%clk 0:01:28.5]} 25.
Bf1 {[%clk 0:02:41.1]} 25... Ne5 {[%clk 0:01:19.4]} 26. Re3 {[%clk 0:02:35.1]}
26... Rd8 {[%clk 0:01:06]} 27. Rc3 {[%clk 0:02:33.6]} 27... Ned7 {[%clk
0:00:55.8]} 28. Bh3 {[%clk 0:02:32]} 28... Rb8 {[%clk 0:00:47.3]} 29. Bxd7
{[%clk 0:02:30.5]} 29... Nxd7 {[%clk 0:00:45.6]} 30. Rd4 {[%clk 0:02:08.8]}
30... Ke6 {[%clk 0:00:42.3]} 31. Kf1 {[%clk 0:02:07.8]} 31... Kd6 {[%clk
0:00:42.1]} 32. b4 {[%clk 0:02:05]} 32... Ne5 {[%clk 0:00:29.5]} 33. f4 {[%clk
0:02:02.5]} 33... Nd7 {[%clk 0:00:25.2]} 34. Re3 {[%clk 0:01:55.7]} 34... b6
{[%clk 0:00:22.2]} 35. axb6 {[%clk 0:01:51.8]} 35... Rxb6 {[%clk 0:00:19]} 36.
f5 {[%clk 0:01:51.9]} 36... Rb5 {[%clk 0:00:11]} 37. Re6+ {[%clk 0:01:50]} 37...
Kc7 {[%clk 0:00:11.3]} 38. Re7 {[%clk 0:01:49.1]} 38... a5 {[%clk 0:00:10.3]}
39. bxa5 {[%clk 0:01:46.7]} 39... Rxa5 {[%clk 0:00:10.3]} 40. Rxg7 {[%clk
0:01:46.4]} 40... Kd6 {[%clk 0:00:10.4]} 41. Rxh7 {[%clk 0:01:40.5]} 41... c5
{[%clk 0:00:10.4]} 42. Rd1 {[%clk 0:01:40.4]} 42... Ne5 {[%clk 0:00:10]} 43. Rh8
{[%clk 0:01:39.3]} 43... d4 {[%clk 0:00:09.1]} 44. h4 {[%clk 0:01:38.7]} 44...
Ra2 {[%clk 0:00:04.6]} 45. Rg8 {[%clk 0:01:29.8]} 45... d3 {[%clk 0:00:02.3]}
46. h5 {[%clk 0:01:29.4]} 46... Ra7 {[%clk 0:00:01.5]} 47. f4 {[%clk 0:01:25]}
1-0

[Event "Early-Titled-Tuesday-Blitz-February-27-2024"]
[Site "Chess.com"]
[Date "2024.02.27"]
[Round "1"]
[White "ReinisUz"]
[Black "PepeCuenca"]
[Result "0-1"]
[WhiteElo "2391"]
[BlackElo "2691"]
[TimeControl "180+1"]
[EndTime "8:06:51 PST"]
[Termination "PepeCuenca won by checkmate"]

1. c4 {[%clk 0:02:59.2]} 1... Nf6 {[%clk 0:02:59.1]} 2. Nc3 {[%clk 0:02:59.3]}
2... g6 {[%clk 0:02:59.5]} 3. g3 {[%clk 0:02:59.2]} 3... Bg7 {[%clk 0:02:59.7]}
4. Bg2 {[%clk 0:02:59.2]} 4... O-O {[%clk 0:02:59.9]} 5. e4 {[%clk 0:02:59.3]}
5... d6 {[%clk 0:02:56.6]} 6. Nge2 {[%clk 0:02:59.9]} 6... c5 {[%clk 0:02:55.8]}
7. O-O {[%clk 0:03:00.4]} 7... Nc6 {[%clk 0:02:56.2]} 8. d3 {[%clk 0:03:00.5]}
8... Ne8 {[%clk 0:02:54.7]} 9. a3 {[%clk 0:03:00.4]} 9... Nc7 {[%clk 0:02:50.5]}
10. Rb1 {[%clk 0:03:00.4]} 10... a5 {[%clk 0:02:51]} 11. f4 {[%clk 0:02:56.4]}
11... Ne6 {[%clk 0:02:50]} 12. h3 {[%clk 0:02:56.5]} 12... Ned4 {[%clk
0:02:49.9]} 13. Kh2 {[%clk 0:02:55.9]} 13... Rb8 {[%clk 0:02:47.5]} 14. Be3
{[%clk 0:02:55.5]} 14... Bd7 {[%clk 0:02:29.5]} 15. f5 {[%clk 0:02:47.3]} 15...
gxf5 {[%clk 0:02:10.4]} 16. exf5 {[%clk 0:02:43.5]} 16... Nxf5 {[%clk
0:02:09.3]} 17. Bg1 {[%clk 0:02:43.3]} 17... Nfd4 {[%clk 0:02:02.7]} 18. Nxd4
{[%clk 0:02:42.3]} 18... Nxd4 {[%clk 0:01:51.9]} 19. b4 {[%clk 0:02:41.3]} 19...
axb4 {[%clk 0:01:46.7]} 20. axb4 {[%clk 0:02:40]} 20... Bc6 {[%clk 0:01:21.8]}
21. Ne4 {[%clk 0:02:22.5]} 21... cxb4 {[%clk 0:00:58.7]} 22. Qh5 {[%clk
0:01:47.8]} 22... Ne6 {[%clk 0:00:52.3]} 23. Rxb4 {[%clk 0:01:43.5]} 23... Ra8
{[%clk 0:00:50.2]} 24. d4 {[%clk 0:01:36.2]} 24... Be8 {[%clk 0:00:34.3]} 25. d5
{[%clk 0:01:32.7]} 25... f5 {[%clk 0:00:33.3]} 26. Qh4 {[%clk 0:01:23.9]} 26...
fxe4 {[%clk 0:00:33.2]} 27. dxe6 {[%clk 0:01:19.7]} 27... Rxf1 {[%clk
0:00:33.2]} 28. Bxf1 {[%clk 0:01:16]} 28... Ra2+ {[%clk 0:00:32.3]} 29. Kh1
{[%clk 0:01:15.2]} 29... Bc6 {[%clk 0:00:32.4]} 30. Bg2 {[%clk 0:01:15.1]} 30...
Qf8 {[%clk 0:00:26.7]} 31. Rb3 {[%clk 0:00:44.8]} 31... Rxg2 {[%clk 0:00:15.3]}
32. Kxg2 {[%clk 0:00:43.6]} 32... e3+ {[%clk 0:00:15.6]} 33. Kh2 {[%clk
0:00:41.7]} 33... Qf3 {[%clk 0:00:14.5]} 34. Rb2 {[%clk 0:00:27.1]} 34... Qh1#
{[%clk 0:00:13.9]} 0-1

[Event "Early-Titled-Tuesday-Blitz-February-27-2024"]
[Site "Chess.com"]
[Date "2024.02.27"]
[Round "1"]
[White "mertfelin"]
[Black "nekotyanof"]
[Result "0-1"]
[WhiteElo "2316"]
[BlackElo "2638"]
[TimeControl "180+1"]
[EndTime "8:06:51 PST"]
[Termination "nekotyanof won by resignation"]

1. e4 {[%clk 0:02:59.7]} 1... c5 {[%clk 0:02:59.3]} 2. Nf3 {[%clk 0:02:59.6]}
2... Nc6 {[%clk 0:02:58.5]} 3. Bb5 {[%clk 0:02:57.9]} 3... g6 {[%clk 0:02:58.3]}
4. O-O {[%clk 0:02:58.1]} 4... Bg7 {[%clk 0:02:58.3]} 5. Nc3 {[%clk 0:02:58.8]}
5... e5 {[%clk 0:02:56.4]} 6. a3 {[%clk 0:02:59.2]} 6... Nge7 {[%clk 0:02:56.6]}
7. b4 {[%clk 0:02:59.7]} 7... cxb4 {[%clk 0:02:57.3]} 8. axb4 {[%clk 0:03:00.2]}
8... O-O {[%clk 0:02:56.4]} 9. Bc4 {[%clk 0:03:00.5]} 9... Nxb4 {[%clk
0:02:55.5]} 10. Ba3 {[%clk 0:03:00.5]} 10... Nbc6 {[%clk 0:02:53]} 11. Bd6
{[%clk 0:03:00.8]} 11... h6 {[%clk 0:02:29.7]} 12. Nb5 {[%clk 0:03:01]} 12... a6
{[%clk 0:02:28.1]} 13. Bc7 {[%clk 0:03:01.5]} 13... axb5 {[%clk 0:02:17.4]} 14.
Bxd8 {[%clk 0:03:00.8]} 14... Rxa1 {[%clk 0:02:17.1]} 15. Qxa1 {[%clk
0:03:00.7]} 15... bxc4 {[%clk 0:02:14]} 16. Bc7 {[%clk 0:02:51.9]} 16... d5
{[%clk 0:02:12.5]} 17. Nxe5 {[%clk 0:02:48.3]} 17... dxe4 {[%clk 0:02:12.4]} 18.
Re1 {[%clk 0:01:40]} 18... Nd5 {[%clk 0:02:06]} 19. Bd6 {[%clk 0:01:33.8]} 19...
Rd8 {[%clk 0:02:02.7]} 20. Qa3 {[%clk 0:01:18.2]} 20... Nxe5 {[%clk 0:01:53.9]}
21. Bxe5 {[%clk 0:01:18.8]} 21... Bxe5 {[%clk 0:01:54.5]} 22. Rxe4 {[%clk
0:01:19.5]} 22... Bf6 {[%clk 0:01:49.2]} 23. Qa4 {[%clk 0:01:15.7]} 23... Be6
{[%clk 0:01:43.4]} 24. h3 {[%clk 0:01:11.2]} 24... c3 {[%clk 0:01:42.7]} 25. d3
{[%clk 0:01:09.9]} 25... Rd6 {[%clk 0:01:35.8]} 26. Qb5 {[%clk 0:01:06.9]} 26...
Rb6 {[%clk 0:01:33.4]} 27. Qe8+ {[%clk 0:01:07.1]} 27... Kg7 {[%clk 0:01:33.6]}
28. h4 {[%clk 0:00:30.1]} 28... Bf5 {[%clk 0:01:30.7]} 29. Re2 {[%clk
0:00:23.8]} 29... Nf4 {[%clk 0:01:28.4]} 30. Re3 {[%clk 0:00:20.1]} 30... Rb2
{[%clk 0:01:28.3]} 31. g3 {[%clk 0:00:19]} 31... Nd5 {[%clk 0:01:23.6]} 32. Re2
{[%clk 0:00:18.7]} 32... Bxd3 {[%clk 0:01:15.7]} 33. cxd3 {[%clk 0:00:18]} 33...
c2 {[%clk 0:01:16.6]} 34. Rxc2 {[%clk 0:00:16.2]} 34... Rxc2 {[%clk 0:01:16.8]}
35. Qb5 {[%clk 0:00:16.2]} 35... Nc3 {[%clk 0:00:54.9]} 36. Qb4 {[%clk
0:00:15.4]} 36... b5 {[%clk 0:00:52.5]} 37. Kg2 {[%clk 0:00:15.7]} 37... Rd2
{[%clk 0:00:45.7]} 38. g4 {[%clk 0:00:13.2]} 38... Rxd3 {[%clk 0:00:43.3]} 39.
g5 {[%clk 0:00:13.1]} 39... hxg5 {[%clk 0:00:44.2]} 40. hxg5 {[%clk 0:00:13.9]}
40... Bxg5 {[%clk 0:00:44.2]} 41. Qh4 {[%clk 0:00:13.1]} 0-1

[Event "Early-Titled-Tuesday-Blitz-February-27-2024"]
[Site "Chess.com"]
[Date "2024.02.27"]
[Round "1"]
[White "Andreikka"]
[Black "PositionalPanther"]
[Result "1-0"]
[WhiteElo "2947"]
[BlackElo "2515"]
[TimeControl "180+1"]
[EndTime "8:06:53 PST"]
[Termination "Andreikka won by resignation"]

1. d4 {[%clk 0:03:00.9]} 1... d5 {[%clk 0:02:58.1]} 2. Nf3 {[%clk 0:02:59.2]}
2... Nf6 {[%clk 0:02:58]} 3. c4 {[%clk 0:02:58.8]} 3... e6 {[%clk 0:02:58.4]} 4.
g3 {[%clk 0:02:55.7]} 4... Be7 {[%clk 0:02:53.7]} 5. Bg2 {[%clk 0:02:54.6]} 5...
O-O {[%clk 0:02:54.1]} 6. Qc2 {[%clk 0:02:54.9]} 6... dxc4 {[%clk 0:02:51.2]} 7.
Qxc4 {[%clk 0:02:53.3]} 7... c6 {[%clk 0:02:51.6]} 8. O-O {[%clk 0:02:48.6]}
8... b5 {[%clk 0:02:51.8]} 9. Qd3 {[%clk 0:02:48.4]} 9... Bb7 {[%clk 0:02:46.6]}
10. Be3 {[%clk 0:02:48.5]} 10... a6 {[%clk 0:02:43.8]} 11. Rc1 {[%clk
0:02:47.2]} 11... Nd5 {[%clk 0:02:41.5]} 12. Nbd2 {[%clk 0:02:46.4]} 12... Nd7
{[%clk 0:02:39.3]} 13. Ne4 {[%clk 0:02:37]} 13... h6 {[%clk 0:02:24.1]} 14. Ne5
{[%clk 0:02:28.6]} 14... Nxe5 {[%clk 0:02:16.6]} 15. dxe5 {[%clk 0:02:28.4]}
15... Nxe3 {[%clk 0:02:06]} 16. Qxe3 {[%clk 0:02:28.2]} 16... c5 {[%clk
0:02:01]} 17. Nxc5 {[%clk 0:02:28.6]} 17... Bxg2 {[%clk 0:02:00.1]} 18. Kxg2
{[%clk 0:02:29.5]} 18... Bxc5 {[%clk 0:01:50.6]} 19. Rxc5 {[%clk 0:02:28.5]}
19... Rc8 {[%clk 0:01:50.4]} 20. Rac1 {[%clk 0:02:28.7]} 20... Rxc5 {[%clk
0:01:49.5]} 21. Rxc5 {[%clk 0:02:29.6]} 21... Qa8+ {[%clk 0:01:49.6]} 22. Qf3
{[%clk 0:02:28.8]} 22... Qxf3+ {[%clk 0:01:45.4]} 23. Kxf3 {[%clk 0:02:28.3]}
23... Rd8 {[%clk 0:01:42.4]} 24. Ke3 {[%clk 0:02:15.9]} 24... g5 {[%clk
0:00:56.2]} 25. Rc6 {[%clk 0:02:06.3]} 25... a5 {[%clk 0:00:45.8]} 26. Rc5
{[%clk 0:02:06.2]} 26... Rb8 {[%clk 0:00:43.7]} 27. h4 {[%clk 0:02:06]} 27...
gxh4 {[%clk 0:00:37.6]} 28. gxh4 {[%clk 0:02:06.9]} 28... Kg7 {[%clk 0:00:38.2]}
29. h5 {[%clk 0:02:07.4]} 29... a4 {[%clk 0:00:34.9]} 30. f4 {[%clk 0:01:35.8]}
30... b4 {[%clk 0:00:34.3]} 31. Ra5 {[%clk 0:01:33.8]} 31... b3 {[%clk
0:00:19.1]} 32. Rxa4 {[%clk 0:01:33.4]} 32... bxa2 {[%clk 0:00:19.2]} 33. Rxa2
{[%clk 0:01:33.3]} 33... Rb3+ {[%clk 0:00:20.1]} 34. Kd4 {[%clk 0:01:22.3]}
34... Rh3 {[%clk 0:00:09.2]} 35. b4 {[%clk 0:01:21.6]} 35... Rxh5 {[%clk
0:00:09.5]} 36. b5 {[%clk 0:01:21.2]} 36... Rh1 {[%clk 0:00:06]} 37. Rb2 {[%clk
0:01:19.5]} 37... Rd1+ {[%clk 0:00:06.1]} 38. Kc5 {[%clk 0:01:17.3]} 38... Rd8
{[%clk 0:00:07]} 39. b6 {[%clk 0:01:15.2]} 39... h5 {[%clk 0:00:07.6]} 40. b7
{[%clk 0:01:15.1]} 40... Rb8 {[%clk 0:00:06.8]} 41. Kc6 {[%clk 0:01:13.5]} 41...
Kg6 {[%clk 0:00:07.2]} 42. e4 {[%clk 0:01:09]} 42... h4 {[%clk 0:00:06.6]} 43.
Kc7 {[%clk 0:01:09.3]} 43... Rh8 {[%clk 0:00:05.6]} 44. b8=Q {[%clk 0:01:08.7]}
44... Rxb8 {[%clk 0:00:06]} 45. Rxb8 {[%clk 0:01:09.3]} 45... Kh5 {[%clk
0:00:06.8]} 46. Rg8 {[%clk 0:01:08.3]} 1-0

[Event "Early-Titled-Tuesday-Blitz-February-27-2024"]
[Site "Chess.com"]
[Date "2024.02.27"]
[Round "1"]
[White "CristianS27"]
[Black "chessamical"]
[Result "0-1"]
[WhiteElo "2542"]
[BlackElo "2175"]
[TimeControl "180+1"]
[EndTime "8:06:54 PST"]
[Termination "chessamical won by checkmate"]

1. e4 {[%clk 0:02:54.3]} 1... d5 {[%clk 0:02:57.5]} 2. d4 {[%clk 0:02:47.3]}
2... dxe4 {[%clk 0:02:56.8]} 3. f3 {[%clk 0:02:48]} 3... e5 {[%clk 0:02:56.3]}
4. d5 {[%clk 0:02:40.3]} 4... Nf6 {[%clk 0:02:55.7]} 5. Nc3 {[%clk 0:02:39.3]}
5... Bb4 {[%clk 0:02:54.7]} 6. Bg5 {[%clk 0:02:29.6]} 6... h6 {[%clk 0:02:53.9]}
7. Bxf6 {[%clk 0:02:28.9]} 7... Qxf6 {[%clk 0:02:53.4]} 8. fxe4 {[%clk
0:02:29.3]} 8... Bxc3+ {[%clk 0:02:52.4]} 9. bxc3 {[%clk 0:02:30.2]} 9... Qh4+
{[%clk 0:02:52.4]} 10. Kd2 {[%clk 0:02:24.9]} 10... Qf4+ {[%clk 0:02:27.5]} 11.
Kd3 {[%clk 0:02:20.5]} 11... f5 {[%clk 0:02:27]} 12. Qh5+ {[%clk 0:02:07.5]}
12... Ke7 {[%clk 0:02:24.2]} 13. Qg6 {[%clk 0:01:45.3]} 13... Qxe4+ {[%clk
0:02:11.1]} 14. Kd2 {[%clk 0:01:43.4]} 14... Qxd5+ {[%clk 0:02:04.7]} 15. Bd3
{[%clk 0:01:42.7]} 15... Qf7 {[%clk 0:01:53.6]} 16. Qg3 {[%clk 0:01:35.6]} 16...
Nc6 {[%clk 0:01:39.8]} 17. Re1 {[%clk 0:01:28.9]} 17... Be6 {[%clk 0:01:24.9]}
18. Nf3 {[%clk 0:00:59.9]} 18... e4 {[%clk 0:01:17.2]} 19. Bb5 {[%clk
0:00:57.6]} 19... Rhd8+ {[%clk 0:01:06.8]} 20. Kc1 {[%clk 0:00:55.9]} 20... exf3
{[%clk 0:01:06.3]} 21. Bxc6 {[%clk 0:00:48.9]} 21... bxc6 {[%clk 0:01:03.2]} 22.
Qxc7+ {[%clk 0:00:49.5]} 22... Kf8 {[%clk 0:00:47.7]} 23. Qxc6 {[%clk
0:00:49.6]} 23... fxg2 {[%clk 0:00:27.6]} 24. Rhg1 {[%clk 0:00:44.2]} 24... Bd5
{[%clk 0:00:21.4]} 25. Qc5+ {[%clk 0:00:44.7]} 25... Kg8 {[%clk 0:00:20.7]} 26.
c4 {[%clk 0:00:45.3]} 26... Be4 {[%clk 0:00:20.4]} 27. h4 {[%clk 0:00:42.9]}
27... Rac8 {[%clk 0:00:20.4]} 28. Qa5 {[%clk 0:00:40.1]} 28... Rd4 {[%clk
0:00:17.7]} 29. c5 {[%clk 0:00:34.5]} 29... Rc4 {[%clk 0:00:15.7]} 30. Re2
{[%clk 0:00:26.8]} 30... R8xc5 {[%clk 0:00:13.9]} 31. Qa6 {[%clk 0:00:26.5]}
31... Rxc2+ {[%clk 0:00:12.4]} 32. Rxc2 {[%clk 0:00:26.8]} 32... Rxc2+ {[%clk
0:00:13]} 33. Kd1 {[%clk 0:00:27.4]} 33... Qd5+ {[%clk 0:00:11.1]} 34. Ke1
{[%clk 0:00:27.1]} 34... Qd2# {[%clk 0:00:11.2]} 0-1